lending/lending_fUSD_20250913
["ID","MTS","AMOUNT","RATE_DAILY","PERIOD"]
[385351389,1757790715408,-400.0,0.00028493,2]
[385351390,1757790715418,-1095.32,0.00028493,2]
[385351391,1757790715428,-400.0,0.00028493,2]
[385351392,1757790715437,-450.34,0.00028493,2]
[385351393,1757790715447,-623.72,0.00028493,2]
[385351394,1757790715456,-400.0,0.00028493,2]
[385351395,1757790715469,-235.49574683,0.00028493,2]
[385351396,1757790715479,-522.52,0.00028493,2]
[385351397,1757790715488,-1025.68,0.00028493,2]
[385351398,1757790715497,-400.0,0.00028493,2]
[385351399,1757790715507,-400.0,0.00028493,2]
[385351400,1757790715517,-400.0,0.00028493,2]
[385351401,1757790715527,-1547.47,0.00028493,2]
[385351402,1757790715537,-400.0,0.00028493,2]
[385351403,1757790715546,-400.0,0.00028493,2]
[385351404,1757790715555,-452.08,0.00028493,2]
[385351405,1757790715566,-400.0,0.00028493,2]
[385351406,1757790715575,-400.0,0.00028493,2]
[385351407,1757790715585,-954.04,0.00028493,2]
[385351408,1757790715594,-972.47,0.00028493,2]
[385351409,1757790715604,-400.0,0.00028493,2]
[385351410,1757790715613,-440.6,0.00028493,2]
[385351411,1757790715622,-501.91335219,0.00028493,2]
[385351412,1757790715631,-400.0,0.00028493,2]
[385351413,1757790715642,-400.0,0.00028493,2]
[385351414,1757790715652,-400.0,0.00028493,2]
[385351415,1757790715661,-312.10864945,0.00028493,2]
[385351416,1757790715671,-400.0,0.00028493,2]
[385351417,1757790715680,-412.59299882,0.00028493,2]
[385351418,1757790715690,-1107.3,0.00028493,2]
[385351419,1757790715699,-1360.89,0.00028493,2]
[385351420,1757790715709,-400.0,0.00028493,2]
[385351421,1757790715718,-400.0,0.00028493,2]
[385351422,1757790715727,-400.0,0.00028493,2]
[385351423,1757790715737,-438.49,0.00028493,2]
[385351424,1757790715746,-511.89,0.00028493,2]
[385351425,1757790715756,-400.0,0.00028493,2]
[385351426,1757790715765,-400.0,0.00028493,2]
[385351427,1757790715775,-400.0,0.00028493,2]
[385351428,1757790715785,-875.02,0.00028493,2]
[385351429,1757790715794,-441.06,0.00028493,2]
[385351430,1757790715803,-540.34,0.00028493,2]
[385351431,1757790715813,-432.57,0.00028493,2]
[385351432,1757790715822,-605.1,0.00028493,2]
[385351433,1757790715831,-400.0,0.00028493,2]
[385351434,1757790715840,-414.68978959,0.00028493,2]
[385351435,1757790715850,-400.0,0.00028493,2]
[385351436,1757790715859,-400.0,0.00028493,2]
[385351437,1757790715868,-400.0,0.00028493,2]
[385351438,1757790715877,-979.03,0.00028493,2]
[385351439,1757790715886,-400.0,0.00028493,2]
[385351440,1757790715895,-400.0,0.00028493,2]
[385351441,1757790715904,-639.66,0.00028493,2]
[385351442,1757790715913,-400.0,0.00028493,2]
[385351443,1757790715923,-743.92,0.00028493,2]
[385351444,1757790715932,-400.0,0.00028493,2]
[385351445,1757790715940,-400.0,0.00028493,2]
[385351446,1757790715949,-400.0,0.00028493,2]
[385351447,1757790715958,-549.77,0.00028493,2]
[385351448,1757790715967,-400.0,0.00028493,2]
[385351449,1757790715976,-400.0,0.00028493,2]
[385351450,1757790715986,-400.0,0.00028493,2]
[385351451,1757790715995,-867.52,0.00028493,2]
[385351452,1757790716004,-400.0,0.00028493,2]
[385351453,1757790716013,-757.51,0.00028493,2]
[385351454,1757790716022,-400.0,0.00028493,2]
[385351455,1757790716031,-400.0,0.00028493,2]
[385351456,1757790716040,-1369.33,0.00028493,2]
[385351457,1757790716049,-976.5,0.00028493,2]
[385351458,1757790716058,-714.21,0.00028493,2]
[385351459,1757790716067,-1200.51,0.00028493,2]
[385351460,1757790716075,-429.54,0.00028493,2]
[385351461,1757790716084,-931.9,0.00028493,2]
[385351462,1757790716093,-402.97420071,0.00028493,2]
[385351463,1757790716103,-407.27090203,0.00028493,2]
[385351464,1757790716112,-767.06,0.00028493,2]
[385351465,1757790716121,-522.36,0.00028493,2]
[385351466,1757790716130,-464.29,0.00028493,2]
[385351467,1757790716140,-196.54865404,0.00028493,2]
[385351468,1757790716150,-400.0,0.00028493,2]
[385351469,1757790716159,-1050.24,0.00028493,2]
[385351470,1757790716168,-400.0,0.00028493,2]
[385351471,1757790716177,-712.0,0.00028493,2]
[385351472,1757790716186,-770.1,0.00028493,2]
[385351473,1757790716195,-1340.61,0.00028493,2]
[385351474,1757790716204,-406.89485517,0.00028493,2]
[385351475,1757790716213,-503.78,0.00028493,2]
[385351476,1757790716222,-744.56,0.00028493,2]
[385351477,1757790716232,-933.78,0.00028493,2]
[385351478,1757790716241,-400.0,0.00028493,2]
[385351479,1757790716250,-917.05,0.00028493,2]
[385351480,1757790716260,-601.03,0.00028493,2]
[385351481,1757790716269,-400.0,0.00028493,2]
[385351482,1757790716279,-1166.06,0.00028493,2]
[385351483,1757790716288,-408.67,0.00028493,2]
[385351484,1757790716298,-400.0,0.00028493,2]
[385351485,1757790716307,-744.95,0.00028493,2]
[385351486,1757790716317,-962.63,0.00028493,2]
[385351487,1757790716327,-400.0,0.00028493,2]
[385351488,1757790716337,-697.23,0.00028493,2]
[385351489,1757790716346,-944.97,0.00028493,2]
[385351490,1757790716356,-1128.5,0.00028493,2]
[385351491,1757790716365,-400.0,0.00028493,2]
[385351492,1757790716375,-400.0,0.00028493,2]
[385351493,1757790716384,-400.0,0.00028493,2]
[385351494,1757790716394,-1287.15,0.00028493,2]
[385351495,1757790716404,-400.0,0.00028493,2]
[385351496,1757790716414,-1140.31,0.00028493,2]
[385351497,1757790716424,-400.0,0.00028493,2]
[385351498,1757790716433,-400.0,0.00028493,2]
[385351499,1757790716443,-400.0,0.00028493,2]
[385351500,1757790716452,-1121.16,0.00028493,2]
[385351501,1757790716462,-883.84,0.00028493,2]
[385351502,1757790716562,-400.0,0.00028493,2]
[385351503,1757790716573,-400.0,0.00028493,2]
[385351504,1757790716582,-400.0,0.00028493,2]
[385351505,1757790716591,-400.0,0.00028493,2]
[385351506,1757790716600,-513.88,0.00028493,2]
[385351507,1757790716610,-766.79,0.00028493,2]
[385351508,1757790716619,-836.28,0.00028493,2]
[385351509,1757790716629,-400.0,0.00028493,2]
[385351510,1757790716638,-400.0,0.00028493,2]
[385351511,1757790716648,-1062.97,0.00028493,2]
[385351512,1757790716658,-400.0,0.00028493,2]
[385351513,1757790716667,-701.46,0.00028493,2]
[385351514,1757790716677,-400.0,0.00028493,2]
[385351515,1757790716686,-400.0,0.00028493,2]
[385351516,1757790716696,-1010.43,0.00028493,2]
[385351517,1757790716705,-417.38141402,0.00028493,2]
[385351518,1757790716714,-400.0,0.00028493,2]
[385351519,1757790716724,-400.0,0.00028493,2]
[385351520,1757790716733,-618.9,0.00028493,2]
[385351521,1757790716742,-740.73,0.00028493,2]
[385351522,1757790716751,-400.0,0.00028493,2]
[385351523,1757790716760,-617.0,0.00028493,2]
[385351524,1757790716769,-955.87,0.00028493,2]
[385351525,1757790716778,-400.0,0.00028493,2]
[385351526,1757790716787,-400.0,0.00028493,2]
[385351527,1757790716796,-1394.15,0.00028493,2]
[385351528,1757790716805,-645.46,0.00028493,2]
[385351529,1757790716815,-400.0,0.00028493,2]
[385351530,1757790716824,-475.16,0.00028493,2]
[385351531,1757790716833,-400.0,0.00028493,2]
[385351532,1757790716842,-400.0,0.00028493,2]
[385351533,1757790716851,-400.0,0.00028493,2]
[385351534,1757790716860,-400.0,0.00028493,2]
[385351535,1757790716869,-1201.25,0.00028493,2]
[385351536,1757790716878,-1420.48,0.00028493,2]
[385351537,1757790716888,-436.7,0.00028493,2]
[385351538,1757790716898,-886.97,0.00028493,2]
[385351539,1757790716906,-400.0,0.00028493,2]
[385351540,1757790716915,-400.0,0.00028493,2]
[385351541,1757790716924,-695.44,0.00028493,2]
[385351542,1757790716933,-400.0,0.00028493,2]
[385351543,1757790716942,-869.21,0.00028493,2]
[385351544,1757790716951,-1459.76,0.00028493,2]
[385351545,1757790716960,-493.41349827,0.00028493,2]
[385351546,1757790716969,-563.58,0.00028493,2]
[385351547,1757790716978,-400.0,0.00028493,2]
[385351548,1757790716987,-400.0,0.00028493,2]
[385351549,1757790716996,-400.0,0.00028493,2]
[385351550,1757790717005,-565.26,0.00028493,2]
[385351551,1757790717015,-400.0,0.00028493,2]
[385351552,1757790717024,-400.0,0.00028493,2]
[385351553,1757790717033,-1134.89,0.00028493,2]
[385351554,1757790717042,-400.0,0.00028493,2]
[385351555,1757790717051,-404.56,0.00028493,2]
[385351556,1757790717060,-734.93,0.00028493,2]
[385351557,1757790717069,-1149.23,0.00028493,2]
[385351558,1757790717078,-400.0,0.00028493,2]
[385351559,1757790717087,-400.0,0.00028493,2]
[385351560,1757790717096,-1190.66,0.00028493,2]
[385351561,1757790717105,-656.39,0.00028493,2]
[385351562,1757790717113,-404.11031231,0.00028493,2]
[385351563,1757790717122,-1130.2,0.00028493,2]
[385351564,1757790717131,-400.0,0.00028493,2]
[385351565,1757790717140,-400.0,0.00028493,2]
[385351566,1757790717149,-373.04075256,0.00028493,2]
[385351567,1757790717157,-400.0,0.00028493,2]
[385351568,1757790717166,-400.0,0.00028493,2]
[385351569,1757790717174,-400.0,0.00028493,2]
[385351570,1757790717183,-400.0,0.00028493,2]
[385351571,1757790717192,-400.0,0.00028493,2]
[385351572,1757790717201,-400.0,0.00028493,2]
[385351573,1757790717210,-914.37,0.00028493,2]
[385351574,1757790717219,-869.45,0.00028493,2]
[385351575,1757790717228,-400.0,0.00028493,2]
[385351576,1757790717237,-400.0,0.00028493,2]
[385351577,1757790717246,-459.11,0.00028493,2]
[385351578,1757790717255,-1022.06,0.00028493,2]
[385351579,1757790717264,-400.0,0.00028493,2]
[385351580,1757790717273,-400.0,0.00028493,2]
[385351581,1757790717282,-400.0,0.00028493,2]
[385351582,1757790717292,-516.71,0.00028493,2]
[385351583,1757790717301,-400.0,0.00028493,2]
[385351584,1757790717310,-400.0,0.00028493,2]
[385351585,1757790717319,-400.0,0.00028493,2]
[385351586,1757790717328,-1379.73,0.00028493,2]
[385351587,1757790717337,-899.94,0.00028493,2]
[385351588,1757790717346,-400.0,0.00028493,2]
[385351589,1757790717355,-866.46,0.00028493,2]
[385351590,1757790717364,-400.0,0.00028493,2]
[385351591,1757790717373,-556.4,0.00028493,2]
[385351592,1757790717382,-1195.99,0.00028493,2]
[385351593,1757790717391,-518.54,0.00028493,2]
[385351594,1757790717400,-1740.08,0.00028493,2]
[385351595,1757790717409,-400.0,0.00028493,2]
[385351596,1757790717418,-1006.76,0.00028493,2]
[385351597,1757790717427,-400.0,0.00028493,2]
[385351598,1757790717436,-400.0,0.00028493,2]
[385351599,1757790717444,-400.0,0.00028493,2]
[385351600,1757790717453,-400.0,0.00028493,2]
[385351601,1757790717463,-668.89,0.00028493,2]
[385351602,1757790717475,-400.0,0.00028493,2]
[385351603,1757790717483,-400.0,0.00028493,2]
[385351604,1757790717492,-529.54,0.00028493,2]
[385351605,1757790717501,-400.0,0.00028493,2]
[385351606,1757790717511,-927.44,0.00028493,2]
[385351607,1757790717520,-662.77,0.00028493,2]
[385351608,1757790717529,-644.35,0.00028493,2]
[385351609,1757790717539,-400.0,0.00028493,2]
[385351610,1757790717550,-400.0,0.00028493,2]
[385351611,1757790717559,-400.0,0.00028493,2]
[385351612,1757790717570,-417.41745215,0.00028493,2]
[385351613,1757790717580,-400.0,0.00028493,2]
[385351614,1757790717590,-586.65,0.00028493,2]
[385351615,1757790717600,-400.0,0.00028493,2]
[385351616,1757790717609,-744.19,0.00028493,2]
[385351617,1757790717619,-899.11,0.00028493,2]
[385351618,1757790717627,-770.78,0.00028493,2]
[385351619,1757790717637,-453.23,0.00028493,2]
[385351620,1757790717646,-714.15,0.00028493,2]
[385351621,1757790717655,-1002.56,0.00028493,2]
[385351622,1757790717664,-400.0,0.00028493,2]
[385351623,1757790717673,-400.0,0.00028493,2]
[385351624,1757790717681,-809.12,0.00028493,2]
[385351625,1757790717691,-400.0,0.00028493,2]
[385351626,1757790717701,-400.0,0.00028493,2]
[385351627,1757790717710,-400.0,0.00028493,2]
[385351628,1757790717719,-300.0,0.00028493,2]
[385351629,1757790717728,-400.0,0.00028493,2]
[385351630,1757790717737,-400.0,0.00028493,2]
[385351631,1757790717746,-400.0,0.00028493,2]
[385351632,1757790717755,-920.75,0.00028493,2]
[385351633,1757790717763,-864.64,0.00028493,2]
[385351634,1757790717773,-400.0,0.00028493,2]
[385351635,1757790717783,-161.04639034,0.00028493,2]
[385351636,1757790717792,-400.0,0.00028493,2]
[385351637,1757790717801,-836.53,0.00028493,2]
[385351638,1757790717810,-400.0,0.00028493,2]
[385351639,1757790717819,-400.0,0.00028493,2]
[385351640,1757790717827,-400.0,0.00028493,2]
[385351641,1757790717836,-400.0,0.00028493,2]
[385351642,1757790717846,-400.0,0.00028493,2]
[385351643,1757790717855,-400.0,0.00028493,2]
[385351644,1757790717865,-400.0,0.00028493,2]
[385351645,1757790717875,-759.84,0.00028493,2]
[385351646,1757790717883,-800.39,0.00028493,2]
[385351647,1757790717892,-400.0,0.00028493,2]
[385351648,1757790717901,-438.06,0.00028493,2]
[385351649,1757790717911,-890.46,0.00028493,2]
[385351650,1757790717919,-1067.29,0.00028493,2]
[385351651,1757790717928,-483.11,0.00028493,2]
[385351652,1757790717937,-2863.78,0.00028493,2]
[385351653,1757790717946,-400.0,0.00028493,2]
[385351654,1757790717955,-621.88,0.00028493,2]
[385351655,1757790717964,-1123.98,0.00028493,2]
[385351656,1757790717973,-440.32,0.00028493,2]
[385351657,1757790717982,-400.0,0.00028493,2]
[385351658,1757790717991,-757.94,0.00028493,2]
[385351659,1757790717999,-400.0,0.00028493,2]
[385351660,1757790718008,-400.0,0.00028493,2]
[385351661,1757790718017,-557.63,0.00028493,2]
[385351662,1757790718026,-861.65,0.00028493,2]
[385351663,1757790718035,-803.76,0.00028493,2]
[385351664,1757790718044,-371.75230773,0.00028493,2]
[385351665,1757790718053,-835.94,0.00028493,2]
[385351666,1757790718061,-434.25,0.00028493,2]
[385351667,1757790718071,-400.0,0.00028493,2]
[385351668,1757790718080,-400.0,0.00028493,2]
[385351669,1757790718089,-578.44,0.00028493,2]
[385351670,1757790718097,-400.0,0.00028493,2]
[385351671,1757790718106,-550.07,0.00028493,2]
[385351672,1757790718115,-405.24280591,0.00028493,2]
[385351673,1757790718124,-435.67593619,0.00028493,2]
[385351674,1757790718133,-800.87,0.00028493,2]
[385351675,1757790718142,-400.0,0.00028493,2]
[385351676,1757790718152,-400.0,0.00028493,2]
[385351677,1757790718161,-541.06,0.00028493,2]
[385351678,1757790718169,-400.0,0.00028493,2]
[385351679,1757790718178,-400.0,0.00028493,2]
[385351680,1757790718186,-400.0,0.00028493,2]
[385351681,1757790718195,-652.82,0.00028493,2]
[385351682,1757790718205,-400.0,0.00028493,2]
[385351683,1757790718215,-400.0,0.00028493,2]
[385351684,1757790718226,-423.72,0.00028493,2]
[385351685,1757790718236,-1300.44,0.00028493,2]
[385351686,1757790718245,-400.0,0.00028493,2]
[385351687,1757790718253,-400.0,0.00028493,2]
[385351688,1757790718262,-439.16,0.00028493,2]
[385351689,1757790718271,-400.0,0.00028493,2]
[385351690,1757790718280,-400.0,0.00028493,2]
[385351691,1757790718289,-400.0,0.00028493,2]
[385351692,1757790718298,-826.3,0.00028493,2]
[385351693,1757790718307,-400.0,0.00028493,2]
[385351694,1757790718316,-787.45,0.00028493,2]
[385351695,1757790718326,-535.57,0.00028493,2]
[385351696,1757790718337,-800.47,0.00028493,2]
[385351697,1757790718347,-400.0,0.00028493,2]
[385351698,1757790718357,-1253.6,0.00028493,2]
[385351699,1757790718365,-434.63866911,0.00028493,2]
[385351700,1757790718375,-400.0,0.00028493,2]
[385351701,1757790718385,-544.69,0.00028493,2]
[385351702,1757790718394,-400.0,0.00028493,2]
[385351703,1757790718403,-400.0,0.00028493,2]
[385351704,1757790718412,-400.0,0.00028493,2]
[385351705,1757790718422,-842.01,0.00028493,2]
[385351706,1757790718431,-400.0,0.00028493,2]
[385351707,1757790718439,-944.98,0.00028493,2]
[385351708,1757790718449,-1082.49,0.00028493,2]
[385351709,1757790718457,-652.8,0.00028493,2]
[385351710,1757790718470,-403.73373964,0.00028493,2]
[385351711,1757790718479,-556.97,0.00028493,2]
[385351712,1757790718488,-489.49,0.00028493,2]
[385351713,1757790718497,-400.0,0.00028493,2]
[385351714,1757790718506,-400.0,0.00028493,2]
[385351715,1757790718515,-400.0,0.00028493,2]
[385351716,1757790718524,-400.0,0.00028493,2]
[385351717,1757790718533,-402.63001707,0.00028493,2]
[385351718,1757790718542,-400.0,0.00028493,2]
[385351719,1757790718550,-439.06,0.00028493,2]
[385351720,1757790718559,-890.6,0.00028493,2]
[385351721,1757790718568,-589.14,0.00028493,2]
[385351722,1757790718577,-400.0,0.00028493,2]
[385351723,1757790718585,-583.29,0.00028493,2]
[385351724,1757790718594,-400.0,0.00028493,2]
[385351725,1757790718603,-708.58,0.00028493,2]
[385351726,1757790718612,-400.0,0.00028493,2]
[385351727,1757790718620,-400.0,0.00028493,2]
[385351728,1757790718630,-531.52,0.00028493,2]
[385351729,1757790718639,-400.0,0.00028493,2]
[385351730,1757790718648,-1252.15,0.00028493,2]
[385351731,1757790718658,-400.0,0.00028493,2]
[385351732,1757790718667,-947.61,0.00028493,2]
[385351733,1757790718677,-400.0,0.00028493,2]
[385351734,1757790718686,-400.0,0.00028493,2]
[385351735,1757790718695,-400.0,0.00028493,2]
[385351736,1757790718704,-1050.56,0.00028493,2]
[385351737,1757790718714,-400.0,0.00028493,2]
[385351738,1757790718723,-400.0,0.00028493,2]
[385351739,1757790718732,-400.0,0.00028493,2]
[385351740,1757790718742,-400.0,0.00028493,2]
[385351741,1757790718751,-400.0,0.00028493,2]
[385351742,1757790718760,-412.04581273,0.00028493,2]
[385351743,1757790718771,-872.42,0.00028493,2]
[385351744,1757790718780,-791.71,0.00028493,2]
[385351745,1757790718790,-407.96,0.00028493,2]
[385351746,1757790718799,-400.0,0.00028493,2]
[385351747,1757790718809,-400.0,0.00028493,2]
[385351748,1757790718818,-400.0,0.00028493,2]
[385351749,1757790718827,-400.0,0.00028493,2]
[385351750,1757790718837,-983.81,0.00028493,2]
[385351751,1757790718846,-400.0,0.00028493,2]
[385351752,1757790718856,-2593.64,0.00028493,2]
[385351753,1757790718865,-868.8,0.00028493,2]
[385351754,1757790718874,-846.53,0.00028493,2]
[385351755,1757790718883,-730.89,0.00028493,2]
[385351756,1757790718893,-400.0,0.00028493,2]
[385351757,1757790718902,-400.0,0.00028493,2]
[385351758,1757790718911,-400.0,0.00028493,2]
[385351759,1757790718921,-785.21,0.00028493,2]
[385351760,1757790718930,-400.0,0.00028493,2]
[385351761,1757790718940,-400.0,0.00028493,2]
[385351762,1757790718949,-400.0,0.00028493,2]
[385351763,1757790718959,-447.29,0.00028493,2]
[385351764,1757790718968,-964.92,0.00028493,2]
[385351765,1757790718978,-400.0,0.00028493,2]
[385351766,1757790718987,-400.0,0.00028493,2]
[385351767,1757790718996,-428.63,0.00028493,2]
[385351768,1757790719006,-759.47,0.00028493,2]
[385351769,1757790719016,-400.0,0.00028493,2]
[385351770,1757790719025,-400.0,0.00028493,2]
[385351771,1757790719034,-400.0,0.00028493,2]
[385351772,1757790719044,-400.0,0.00028493,2]
[385351773,1757790719053,-620.45,0.00028493,2]
[385351774,1757790719063,-862.8,0.00028493,2]
[385351775,1757790719072,-537.7,0.00028493,2]
[385351776,1757790719081,-505.66,0.00028493,2]
[385351777,1757790719091,-400.0,0.00028493,2]
[385351778,1757790719100,-400.0,0.00028493,2]
[385351779,1757790719109,-400.0,0.00028493,2]
[385351780,1757790719119,-427.09,0.00028493,2]
[385351781,1757790719128,-534.88901421,0.00028493,2]
[385351782,1757790719137,-400.0,0.00028493,2]
[385351783,1757790719146,-402.91672199,0.00028493,2]
[385351784,1757790719155,-1263.32,0.00028493,2]
[385351785,1757790719164,-400.0,0.00028493,2]
[385351786,1757790719174,-400.0,0.00028493,2]
[385351787,1757790719182,-400.0,0.00028493,2]
[385351788,1757790719192,-786.15,0.00028493,2]
[385351789,1757790719201,-4665.54,0.00028493,2]
[385351790,1757790719210,-400.0,0.00028493,2]
[385351791,1757790719219,-400.0,0.00028493,2]
[385351792,1757790719228,-769.42,0.00028493,2]
[385351793,1757790719238,-1162.64,0.00028493,2]
[385351794,1757790719248,-958.92,0.00028493,2]
[385351795,1757790719257,-400.0,0.00028493,2]
[385351796,1757790719266,-400.0,0.00028493,2]
[385351797,1757790719275,-843.12,0.00028493,2]
[385351798,1757790719284,-400.0,0.00028493,2]
[385351799,1757790719293,-830.89,0.00028493,2]
[385351800,1757790719302,-1106.22,0.00028493,2]
[385351801,1757790719310,-400.0,0.00028493,2]
[385351802,1757790719319,-400.0,0.00028493,2]
[385351803,1757790719328,-400.0,0.00028493,2]
[385351804,1757790719336,-400.0,0.00028493,2]
[385351805,1757790719345,-484.74,0.00028493,2]
[385351806,1757790719355,-871.15,0.00028493,2]
[385351807,1757790719364,-400.0,0.00028493,2]
[385351808,1757790719374,-582.6,0.00028493,2]
[385351809,1757790719384,-1197.3,0.00028493,2]
[385351810,1757790719394,-400.0,0.00028493,2]
[385351811,1757790719403,-400.0,0.00028493,2]
[385351812,1757790719413,-3316.79,0.00028493,2]
[385351813,1757790719422,-400.0,0.00028493,2]
[385351814,1757790719432,-400.0,0.00028493,2]
[385351815,1757790719441,-400.0,0.00028493,2]
[385351816,1757790719451,-400.0,0.00028493,2]
[385351817,1757790719462,-400.0,0.00028493,2]
[385351818,1757790719474,-1081.81,0.00028493,2]
[385351819,1757790719483,-400.0,0.00028493,2]
[385351820,1757790719493,-898.38,0.00028493,2]
[385351821,1757790719502,-400.0,0.00028493,2]
[385351822,1757790719513,-744.46,0.00028493,2]
[385351823,1757790719522,-1406.57,0.00028493,2]
[385351824,1757790719532,-420.47,0.00028493,2]
[385351825,1757790719548,-2017.53,0.00028493,2]
[385351826,1757790719558,-400.0,0.00028493,2]
[385351827,1757790719567,-1035.92,0.00028493,2]
[385351828,1757790719577,-400.0,0.00028493,2]
[385351829,1757790719587,-400.0,0.00028493,2]
[385351830,1757790719597,-752.16,0.00028493,2]
[385351831,1757790719606,-1791.52,0.00028493,2]
[385351832,1757790719616,-843.08,0.00028493,2]
[385351833,1757790719626,-729.82,0.00028493,2]
[385351834,1757790719635,-400.0,0.00028493,2]
[385351835,1757790719645,-400.0,0.00028493,2]
[385351836,1757790719655,-924.42,0.00028493,2]
[385351837,1757790719664,-715.39,0.00028493,2]
[385351838,1757790719674,-1125.91,0.00028493,2]
[385351839,1757790719684,-400.0,0.00028493,2]
[385351840,1757790719693,-400.0,0.00028493,2]
[385351841,1757790719702,-543.24,0.00028493,2]
[385351842,1757790719712,-905.52,0.00028493,2]
[385351843,1757790719722,-405.71,0.00028493,2]
[385351844,1757790719732,-838.71,0.00028493,2]
[385351845,1757790719742,-400.0,0.00028493,2]
[385351846,1757790719752,-405.06,0.00028493,2]
[385351847,1757790719762,-400.0,0.00028493,2]
[385351848,1757790719772,-897.14,0.00028493,2]
[385351849,1757790719782,-1221.3,0.00028493,2]
[385351850,1757790719792,-778.35,0.00028493,2]
[385351851,1757790719804,-400.0,0.00028493,2]
[385351852,1757790719814,-1097.98,0.00028493,2]
[385351853,1757790719825,-1550.32,0.00028493,2]
[385351854,1757790719836,-400.0,0.00028493,2]
[385351855,1757790719846,-746.12,0.00028493,2]
[385351856,1757790719856,-519.54,0.00028493,2]
[385351857,1757790719866,-400.0,0.00028493,2]
[385351858,1757790719876,-400.0,0.00028493,2]
[385351859,1757790719887,-400.0,0.00028493,2]
[385351860,1757790719897,-400.0,0.00028493,2]
[385351861,1757790719908,-812.08,0.00028493,2]
[385351862,1757790719918,-400.0,0.00028493,2]
[385351863,1757790719927,-1172.1,0.00028493,2]
[385351864,1757790719936,-1004.56,0.00028493,2]
[385351865,1757790719945,-406.12,0.00028493,2]
[385351866,1757790719955,-404.28198212,0.00028493,2]
[385351867,1757790719964,-738.83,0.00028493,2]
[385351868,1757790719974,-400.0,0.00028493,2]
[385351869,1757790719984,-400.0,0.00028493,2]
[385351870,1757790719994,-1445.07,0.00028493,2]
[385351871,1757790720004,-400.0,0.00028493,2]
[385351872,1757790720014,-400.0,0.00028493,2]
[385351873,1757790720023,-400.0,0.00028493,2]
[385351874,1757790720034,-681.1,0.00028493,2]
[385351875,1757790720043,-400.0,0.00028493,2]
[385351876,1757790720053,-400.0,0.00028493,2]
[385351877,1757790720063,-400.0,0.00028493,2]
[385351878,1757790720073,-636.43,0.00028493,2]
[385351879,1757790720083,-400.0,0.00028493,2]
[385351880,1757790720092,-400.0,0.00028493,2]
[385351881,1757790720102,-1822.15,0.00028493,2]
[385351882,1757790720112,-400.0,0.00028493,2]
[385351883,1757790720122,-400.0,0.00028493,2]
[385351884,1757790720132,-417.32,0.00028493,2]
[385351885,1757790720142,-400.0,0.00028493,2]
[385351886,1757790720152,-1015.89,0.00028493,2]
[385351887,1757790720162,-983.53,0.00028493,2]
[385351888,1757790720171,-761.25,0.00028493,2]